[Event "GER-ch Youth-ODJM 2022 A"]
[Site "Willingen"]
[Date "2022.06.08"]
[Round "5.11"]
[White "François, Yannick"]
[Black "Irkilmez, Yakub"]
[Result "1/2-1/2"]
[ECO "A34"]
[WhiteElo "1867"]
[BlackElo "2169"]
[Annotator "TA"]
[PlyCount "199"]
[EventDate "2022.06.05"]
[EventType "swiss"]
[EventRounds "9"]
[EventCountry "GER"]
[SourceTitle "playchess.com"]
[Source "ChessBase"]
[SourceQuality "1"]
[TimeControl "40/4500+30:900+30"]

{[%evp 9,199,17,20,13,23,16,22,21,22,14,12,10,8,8,30,6,41,39,54,31,63,0,14,-5,0,-56,-43,-61,-57,-89,-58,-159,-175,-167,-172,-172,-173,-205,-160,-171,-115,-101,-64,-72,0,0,0,0,0,0,0,0,0,0,0,0,0,0,0,0,0,0,0,0,0,0,0,0,0,-7,-7,-7,0,-379,-357,-350,-475,-475,-300,-260,-66,-71,-91,-111,-151,-135,-119,-196,-204,-175,-195,-203,-203,-203,-203,-203,-203,-203,-203,-203,-672,-1310,-956,-1740,-1137,-1594,-1510,-1677,-1159,-1588,-102,-1312,0,-29967,-11838,-29965,-29966,-29966,-29964,-5485,-5493,-29956,-871,-29970,-29971,-29974,-29975,-29984,-29972,-29976,-29977,-29977,-29978,-29978,-41,-59,-8,-8,-8,-8,-8,-8,-8,-8,-8,-10,-10,-10,-8,-8,-8,-8,-8,-8,-8,-8,-8,-8,-8,-8,-8,-8,-8,-8,-8,-8,-8,-8,0,-17,0,-17,0,-17,-17,-17,-17,-17,-17,-17,-17,-17,-17,-17,-8,-8,-8,-8,-8,-8,-8,-8]} 1. c4 {[%emt 0:00:00]} c5 {[%emt 0:00:00]} 2. Nc3 {[%emt 0:00:00]} Nf6 {[%emt 0:00:00]} 3. e4 {[%emt 0:00:00]} Nc6 {[%emt 0:00:00][%cal Bb8c6,Bc6b4,Bb4d5][%mdl 32]} 4. g3 {[%emt 0:00:00]} e6 {[%emt 0:00:00]} 5. Bg2 {[%emt 0:00:00]} d5 {[%emt 0:00:00]} 6. exd5 {[%emt 0:00:00] A19: English Opening: Flohr-Mikenas System with 3...c5.} exd5 {[%emt 0:00:00]} 7. cxd5 {[%emt 0:00:00]} Nb4 {[%emt 0:00:00]} 8. d3 $1 {[%emt 0:00:00]} Be7 {[%emt 0:00:00]} 9. Nge2 {[%emt 0:00:00]} Nbxd5 {[%emt 0:08:20]} 10. O-O {[%emt 0:00:00]} O-O {[%emt 0:00:38]} 11. Nf4 {[%emt 0:00:00]} Nb4 {[%emt 0:10:56] [#]} 12. h3 $146 {[%emt 0:00:00]} ({Predecessor:} 12. a3 Nc6 13. Nfd5 Nxd5 14. Nxd5 Be6 15. Nxe7+ Qxe7 16. Bxc6 bxc6 17. f3 Rad8 18. Qc2 {0-1 (53) Tomaszewski,R (2206)-Ogloblin,N (2346) Chess.com INT 2020}) 12... Bf5 {[%emt 0:23:10][%cal Rb4d3]} 13. Bxb7 {[%emt 0:00:00]} Rb8 {[%emt 0:06:46]} 14. Be4 {[%emt 0:00:56]} Qc8 {[%emt 0:09:42]} 15. Bxf5 {[%emt 0:04:24]} (15. g4 $1 $14 {was preferrable.} Bxe4 16. dxe4) 15... Qxf5 $11 {[%emt 0:00:08]} 16. Qe2 {[%emt 0:00:27]} Rfe8 {[%emt 0:00:32]} 17. Ne4 {[%emt 0:00:59] Inhibits Bd6.} (17. g4 $11 Qc8 18. Rb1) 17... Rbd8 {[%emt 0:01:39][%cal Ob4d3]} 18. Re1 {[%emt 0:01:24]} Nfd5 {[%emt 0:04:03]} 19. Nxd5 {[%emt 0:03:43]} Qxd5 {[%emt 0:01:29]} 20. Be3 {[%emt 0:01:20]} ({Better is} 20. Bd2 $1 $15) 20... Nxd3 $17 {[%emt 0:01:08]} 21. Nc3 {[%emt 0:00:30]} Qb7 {[%emt 0:04:12]} 22. Red1 {[%emt 0:02:29]} c4 {[%emt 0:04:07]} ({Not} 22... Qxb2 23. Qxb2 Nxb2 24. Rxd8 Rxd8 25. Rb1 $15) ({Don't play} 22... Nxb2 23. Rxd8 Rxd8 24. Rb1 $18) 23. Rd2 {[%emt 0:02:39]} Bf6 {[%emt 0:01:38]} 24. Rad1 {[%emt 0:01:41]} Bxc3 {[%emt 0:04:01]} (24... Rc8 $19 25. Rf1 Bd4 26. Bxd4 Rxe2 27. Nxe2 Re8) 25. bxc3 {[%emt 0:00:12]} Qc8 {[%emt 0:03:31]} 26. Qg4 {[%emt 0:01:37]} Qxg4 {[%emt 0:01:42]} ({Black should try} 26... Qc6 $1 $17) 27. hxg4 $11 {[%emt 0:00:06]} a6 {[%emt 0:00:12]} 28. Rb1 {[%emt 0:01:47]} Rb8 {[%emt 0:00:12]} 29. Rxb8 {[%emt 0:01:23]} Rxb8 {[%emt 0:00:05][%mdl 4096] Endgame KRB-KRN} 30. Kg2 {[%emt 0:01:49]} f6 {[%emt 0:00:32]} 31. f4 {[%emt 0:02:05]} Kf7 {[%emt 0:01:01]} 32. Kf3 {[%emt 0:00:52]} Rd8 {[%emt 0:00:39]} 33. Bd4 {[%emt 0:01:07]} Re8 {[%emt 0:00:40]} 34. Re2 {[%emt 0:04:07]} Rxe2 {[%emt 0:00:38]} 35. Kxe2 {[%emt 0:00:06] KB-KN} Ke6 {[%emt 0:00:13]} 36. Ke3 {[%emt 0:01:44]} g6 {[%emt 0:00:36]} 37. Bb6 {[%emt 0:01:01]} Kd5 {[%emt 0:00:20]} 38. Bd4 {[%emt 0:00:53]} f5 {[%emt 0:00:46]} 39. gxf5 {[%emt 0:00:13]} gxf5 {[%emt 0:00:04]} 40. Bb6 {[%emt 0:00:38]} Nb2 {[%emt 0:01:09]} 41. Bd8 $2 {[%emt 0:17:07][%mdl 8192]} (41. Kf3 $1 $11 {and White has nothing to worry.}) 41... Nd1+ $1 $19 {[%emt 0:00:00]} 42. Kd2 Nf2 {[%emt 0:00:00]} 43. Bh4 {[%emt 0:00:00]} Ke4 {[%emt 0:00:00]} 44. Ke2 Nd3 {[%emt 0:00:00]} (44... Nh1 $1 $19 {White must now prevent ...a5.} 45. a4 h6) 45. Bg5 {[%emt 0:00:00]} Nc5 {[%emt 0:00:00]} 46. Be7 {[%emt 0:00:00]} Na4 {[%emt 0:00:00]} 47. Bf6 {[%emt 0:00:00]} Nb6 $1 {[%emt 0:00:00]} 48. Bd8 {[%emt 0:00:00]} (48. Bg7 $17) 48... Nd5 {[%emt 0:00:00]} 49. Ba5 {[%emt 0:00:00]} h6 {[%emt 0:03:45]} 50. a3 {[%emt 0:00:00]} h5 {[%emt 0:00:20][%cal Oh5h4]} 51. Bb4 {[%emt 0:00:00]} h4 $1 {[%emt 0:00:29]} 52. gxh4 {[%emt 0:00:00]} Kxf4 {[%emt 0:00:27] aiming for ...Kg4.} 53. Bd6+ {[%emt 0:00:00]} Kg4 {[%emt 0:00:08]} 54. Be5 {[%emt 0:00:00]} Kxh4 {[%emt 0:00:10] Strongly threatening ...Kg4.} 55. Kf3 {[%emt 0:00:00]} Kg5 {[%emt 0:00:13]} 56. Bd4 {[%emt 0:00:00]} Kg6 {[%emt 0:02:46]} 57. Kg3 {[%emt 0:00:00]} Kf7 {[%emt 0:00:14]} 58. a4 {[%emt 0:00:00]} Nc7 {[%emt 0:00:54] Hoping for ...Ne6.} 59. Kf3 {[%emt 0:00:00] [#]} Ke6 $2 {[%emt 0:00:24]} (59... Ne6 $1 $19 {[%cal Re6d4]} 60. Ke3 Ke7) 60. Be3 {[%emt 0:00:00][%mdl 8192]} (60. Kf4 $17) 60... Kd5 $2 {[%emt 0:06:44]} (60... Nd5 $19 61. Bd4 Kd6) 61. a5 $2 {[%emt 0:00:07][%mdl 8192]} (61. Kf4 $11) 61... Ne6 {[%emt 0:00:11]} (61... Kc6 $142 62. Kg3 Kb5 63. Bb6 Nd5 64. Bd8 Nxc3 65. Kf4 Nd5+ 66. Kxf5 c3 67. Bg5 c2 68. Bd2 {[#]} Nc3 $1 {[%mdl 512]} 69. Bxc3 c1=Q 70. Bd4 Qf1+ 71. Ke4 Qb1+ 72. Ke5 Qe1+ 73. Kf5 Qf1+ 74. Kg5 Qc1+ 75. Kg6 Qc2+ 76. Kf6 Qc6+ 77. Kf5 Qf3+ 78. Ke6 Qg4+ 79. Ke5 Qg5+ 80. Ke4 Qh4+ 81. Ke5 Qh5+ 82. Kf4 Qf7+ 83. Kg3 Qg6+ 84. Kf4 Kxa5 85. Bf2 Qf7+ 86. Ke3 Kb5 87. Ke2 Qh5+ 88. Ke3 a5 89. Ke4 Qg4+ 90. Ke3 Qe6+ 91. Kf3 Qf6+ 92. Ke3 a4 93. Bg3 a3 94. Ke4 Qg6+ 95. Kf3 a2 96. Be5 Qf5+ 97. Kg3 Qxe5+ 98. Kh3 a1=Q 99. Kg2 Qf4 100. Kh3 Qh1#) 62. Bb6 {[%emt 0:00:30]} Kc6 {[%emt 0:00:22]} 63. Ke3 {[%emt 0:01:09]} Kb5 {[%emt 0:00:06]} 64. Kd2 {[%emt 0:02:21]} Ng5 {[%emt 0:00:47]} 65. Ke3 Ne4 {[%emt 0:00:17]} (65... Ka4 $142 66. Kf4 Ne4 67. Bd4 Kb3 68. Kxf5 Nxc3 69. Be3 Nd5 70. Bh6 c3 71. Ke4 Kc4 72. Ke5 c2 73. Bg5 Nb4 74. Kf6 Nc6 75. Ke6 Nxa5 76. Bf4 Nb3 77. Ke7 c1=Q 78. Bxc1 Nxc1 79. Kf6 a5 80. Ke7 a4 81. Kf7 Kd5 82. Kg6 a3 83. Kh6 a2 84. Kh5 a1=Q 85. Kg6 Qe5 86. Kh7 Ke6 87. Kg6 Qg3+ 88. Kh6 Kf6 89. Kh7 Qg7#) 66. Kf4 {[%emt 0:00:57]} Nxc3 {[%emt 0:00:21]} 67. Kxf5 {[%emt 0:00:06]} Nd5 {[%emt 0:00:41]} 68. Ke4 {[%emt 0:00:29]} Nb4 {[%emt 0:00:06]} 69. Bc7 {[%emt 0:01:34]} c3 {[%emt 0:00:18]} 70. Kd4 {[%emt 0:00:26]} c2 {[%emt 0:00:51]} 71. Bf4 {[%emt 0:00:08]} Ka4 $2 {[%emt 0:00:10]} (71... Na2 {mates} 72. Kd3 c1=Q 73. Bxc1 Nxc1+ 74. Kc3 Ka4 75. Kd4 Kb4 76. Kd5 Nb3 77. Ke5 Nxa5 78. Ke4 Nc4 79. Kd3 Kb3 80. Ke2 a5 81. Kd1 a4 82. Kc1 a3 83. Kb1 Ne3 84. Kc1 a2 85. Kd2 Nc4+ 86. Kd3 a1=Q 87. Ke4 Qf6 88. Kd5 Qg6 89. Kd4 Qe6 90. Kc5 Qd6+ 91. Kb5 Qb6#) 72. Bd2 $15 {[%emt 0:01:34]} Kxa5 (72... Kb3 $15 73. Kc5 Ka4) 73. Kc3 $11 {[%emt 0:02:21] The position is equal.} Ka4 {[%emt 0:02:54]} 74. Kb2 {[%emt 0:00:11]} a5 {[%emt 0:00:10][%cal Ba6a5,Ba5a4,Ba4a3][%mdl 32]} 75. Bc3 {[%emt 0:05:05]} c1=Q+ {[%emt 0:01:15]} 76. Kxc1 {[%emt 0:00:04]} Kb3 {[%emt 0:00:30]} 77. Bg7 {[%emt 0:03:14]} a4 {[%emt 0:00:00]} 78. Bf8 {[%emt 0:01:59]} a3 {[%emt 0:00:04]} 79. Bg7 {[%emt 0:02:56]} Nd3+ {[%emt 0:00:36]} (79... a2 {keeps more tension.} 80. Kd2 Nc2 81. Bh8 a1=Q) 80. Kd2 Nb2 {[%emt 0:00:28]} 81. Kc1 {[%emt 0:01:15]} Na4 {[%emt 0:00:59]} 82. Bf6 {[%emt 0:01:11]} Nc5 {[%emt 0:00:14]} (82... a2 $5 83. Ba1 Nc5 $11) 83. Bg7 {[%emt 0:02:16]} Ne4 {[%emt 0:00:55]} 84. Bh8 {[%emt 0:01:31]} Ng3 {[%emt 0:00:17]} (84... a2 {feels hotter.} 85. Ba1 Nc3 86. Kd2 Nd5) 85. Bg7 {[%emt 0:01:42]} (85. Be5 {seems wilder.} a2 86. Ba1 Ne2+ 87. Kd2) 85... Ne2+ {[%emt 0:00:15]} (85... a2 {with more complications.} 86. Ba1 Ne2+ 87. Kd2 Ng1) 86. Kd2 {[%emt 0:00:10]} Nf4 {[%emt 0:00:06]} 87. Bh8 {[%emt 0:01:02]} Nd5 {[%emt 0:00:43]} 88. Kc1 {[%emt 0:01:14]} Nb4 {[%emt 0:01:11]} 89. Bg7 {[%emt 0:00:42]} Nd3+ {[%emt 0:00:23]} (89... a2 {is more complex.} 90. Kd2 Nc6 91. Kc1 Na7) 90. Kd2 {[%emt 0:00:11]} Nc5 {[%emt 0:00:32]} 91. Bh8 {[%emt 0:00:57]} Na4 {[%emt 0:01:04]} 92. Kc1 {[%emt 0:02:04]} a2 {[%emt 0:00:14]} 93. Ba1 $1 {[%emt 0:00:24]} Nc3 {[%emt 0:00:07]} 94. Kd2 Ne4+ {[%emt 0:00:21]} 95. Kd1 {[%emt 0:00:52]} Nc5 {[%emt 0:01:12]} 96. Kd2 {[%emt 0:00:20]} Ka3 {[%emt 0:00:07] ( -> ...Nb3+)} 97. Kc2 {[%emt 0:00:18]} Nb3 {[%emt 0:00:10]} 98. Bb2+ {[%emt 0:00:13]} Ka4 {[%emt 0:00:05]} 99. Ba1 {[%emt 0:00:22]} Nxa1+ {[%emt 0:00:15]} 100. Kb2 {[%emt 0:00:03] Whites escaped into a draw.  Weighted Error Value: White=0.66/Black=0.46} 1/2-1/2

[Event "GER-ch Youth-ODJM 2022 A"]
[Site "Willingen"]
[Date "2022.06.08"]
[Round "5.12"]
[White "Terhuven, Patrick"]
[Black "Zha, Kevin"]
[Result "1-0"]
[ECO "A04"]
[WhiteElo "2175"]
[BlackElo "1835"]
[Annotator "TA"]
[PlyCount "105"]
[EventDate "2022.06.05"]
[EventType "swiss"]
[EventRounds "9"]
[EventCountry "GER"]
[SourceTitle "playchess.com"]
[Source "ChessBase"]
[SourceQuality "1"]
[TimeControl "40/4500+30:900+30"]

{[%evp 16,105,30,20,37,34,122,114,133,87,93,91,146,84,93,41,88,91,74,38,41,0,0,-25,28,-6,48,52,41,17,79,70,106,97,152,131,152,75,76,83,168,110,191,190,192,140,281,243,246,259,277,250,399,289,629,295,271,284,306,310,308,308,391,411,401,375,392,383,374,371,444,448,421,404,766,745,771,645,637,587,602,576,569,549,888,762,1158,893,895,866,775,700]} 1. Nf3 {[%emt 0:00:00]} g6 {[%emt 0:00:00]} 2. d4 {[%emt 0:00:00]} Bg7 {[%emt 0:00:00]} 3. g3 {[%emt 0:00:00]} d6 {[%emt 0:00:00]} 4. Bg2 {[%emt 0:00:00]} Nf6 {[%emt 0:00:00]} 5. b3 {[%emt 0:00:00]} O-O {[%emt 0:00:00]} 6. Bb2 {[%emt 0:00:00]} c6 {[%emt 0:00:00]} 7. O-O {[%emt 0:00:00]} Nbd7 {[%emt 0:00:00] 7...Bf5 is more advanced technology.} 8. Nbd2 {[%emt 0:00:00]} Qc7 {[%emt 0:00:00]} 9. e4 {[%emt 0:00:00]} Rb8 {[%emt 0:07:10] A49: 1 d4 Nf6 2 Nf3 g6 3 g3: Anti-King's Indian systems.} 10. a4 {[%emt 0:00:00] [#]} d5 $146 {[%emt 0:11:53]} (10... b6 $14) ({Predecessor:} 10... e5 11. dxe5 dxe5 12. Re1 Rd8 13. Nc4 Ne8 14. Qb1 f6 15. b4 Nb6 16. Nxb6 axb6 17. c4 {1-0 (41) Sulava,N (2549)-Ballandras,M (1934) Metz 2007}) 11. e5 $1 $16 {[%emt 0:00:00]} Ng4 {[%emt 0:12:15] White is better.} 12. h3 {[%emt 0:00:00]} (12. Re1 $142) 12... Nh6 {[%emt 0:00:38]} 13. Qe2 {[%emt 0:01:16]} b5 {[%emt 0:08:02]} (13... Rd8 $142) 14. e6 {[%emt 0:03:40]} (14. axb5 $142 cxb5 15. c3) 14... Nf6 {[%emt 0:03:03]} 15. g4 {[%emt 0:02:28]} (15. exf7+ $16 Nxf7 16. Rfe1) 15... Ne8 {[%emt 0:00:12]} (15... Bxe6 $14 16. axb5 (16. g5 Nh5 $11) 16... cxb5) 16. exf7+ {[%emt 0:02:15]} Nxf7 {[%emt 0:00:09]} 17. Rfe1 {[%emt 0:03:45] Threatens to win with axb5.} e6 $1 {[%emt 0:04:46]} 18. Nf1 {[%emt 0:10:24]} Ned6 {[%emt 0:03:13]} 19. Ng3 {[%emt 0:00:46]} Bd7 {[%emt 0:10:59]} (19... bxa4 $142 20. Rxa4 c5) 20. Qd2 {[%emt 0:06:12]} Rbe8 {[%emt 0:07:15]} (20... bxa4 $11 21. Rxa4 Nc4 22. bxc4 Rxb2) 21. axb5 $14 {[%emt 0:02:49]} cxb5 {[%emt 0:01:58][%cal Ob5b4]} 22. Ba3 {[%emt 0:02:39]} Ra8 {[%emt 0:04:42]} (22... a5 $11) 23. Bb4 $16 {[%emt 0:05:14]} Rfc8 {[%emt 0:00:19]} 24. Ra6 {[%emt 0:05:27]} Nb7 {[%emt 0:01:19]} (24... Re8 $142) 25. c3 {[%emt 0:02:04]} Nbd8 {[%emt 0:02:40]} 26. Rea1 {[%emt 0:02:32] 0x0.00207e114968dp-1022s more active pieces.} ({Better is} 26. h4 $1) 26... Nc6 {[%emt 0:00:38]} 27. Bc5 {[%emt 0:01:05]} Bf8 {[%emt 0:00:22] [#]} (27... Re8 $16 {was necessary.}) 28. b4 {[%emt 0:01:30]} (28. c4 $1 $18 {[%cal Rc4d5]}) 28... Bxc5 {[%emt 0:02:07]} (28... Bd6 $16) 29. dxc5 $18 {[%emt 0:00:15]} ({But not} 29. bxc5 $6 Rcb8 $16) 29... Re8 {[%emt 0:00:30]} 30. Nd4 {[%emt 0:02:47]} ({White should try} 30. Ne2 $18) 30... Nb8 {[%emt 0:01:44] This move loses the game for Black.} (30... Nxd4 $16 31. cxd4 Bc8) 31. R6a5 {[%emt 0:05:31]} a6 {[%emt 0:01:30]} 32. f4 {[%emt 0:14:54] Against Ne5} Ra7 {[%emt 0:00:40]} 33. Qe3 {[%emt 0:01:32]} Re7 {[%emt 0:02:27]} (33... Qb7 {was called for.} 34. R5a2 Nc6) 34. f5 {[%emt 0:01:45][%cal Rf5e6]} Qc8 $2 {[%emt 0:01:01]} (34... e5 35. Ne6 Qb7) 35. f6 {[%emt 0:04:50]} (35. Bxd5 $142 exd5 36. Qxe7) 35... Re8 {[%emt 0:00:03] [#]} 36. Nxb5 $1 {[%emt 0:00:59][%mdl 512]} Bxb5 {[%emt 0:00:18]} (36... Rb7 37. Nd4) 37. Rxb5 {[%emt 0:00:02][%cal Ba5b5,Bb5b6,Bb6a6][%mdl 96] Pin} Nc6 {[%emt 0:00:25]} 38. Rb6 {[%emt 0:00:44]} Nce5 {[%emt 0:00:01]} 39. Bf1 {[%emt 0:00:57]} Qd8 {[%emt 0:01:03]} 40. Raxa6 {[%emt 0:05:12]} Rxa6 {[%emt 0:00:10]} 41. Rxa6 {[%emt 0:15:26]} ({Less strong is} 41. Bxa6 Ng5 42. Be2 Qxf6 $18) 41... Qxf6 {[%emt 0:00:00]} 42. Be2 {[%emt 0:00:00]} Ng5 {[%emt 0:00:00]} 43. Kg2 {[%emt 0:00:00]} Rf8 {[%emt 0:00:00]} 44. b5 {[%emt 0:00:00]} Nef3 {[%emt 0:00:00]} (44... Ngf7 $142 45. b6 Qe7) 45. Bxf3 {[%emt 0:00:00] White is clearly winning.} Nxf3 {[%emt 0:00:00]} 46. Qxe6+ {[%emt 0:00:00]} Qxe6 {[%emt 0:00:00]} 47. Rxe6 {[%emt 0:00:00][%mdl 4096] Endgame KRN-KRN} Nh4+ {[%emt 0:00:00]} 48. Kg1 {[%emt 0:00:00]} Nf3+ {[%emt 0:00:00] [#]} 49. Kh1 $1 {[%emt 0:00:00]} d4 {[%emt 0:00:00]} 50. Ne4 {[%emt 0:00:00]} d3 {[%emt 0:08:49]} 51. Rd6 {[%emt 0:00:00] Black must now prevent c6.} Ra8 {[%emt 0:00:39]} 52. Kg2 {[%emt 0:00:00]} Ne5 {[%emt 0:00:37]} 53. c6 {[%emt 0:00:00] Weighted Error Value: White=0.32/Black=0.51} 1-0

[Event "GER-ch Youth-ODJM 2022 A"]
[Site "Willingen"]
[Date "2022.06.08"]
[Round "5.13"]
[White "Frohnhäuser, Simon"]
[Black "Garbuz, Vitaly"]
[Result "0-1"]
[ECO "B35"]
[WhiteElo "1944"]
[BlackElo "2134"]
[Annotator "TA"]
[PlyCount "128"]
[EventDate "2022.06.05"]
[EventType "swiss"]
[EventRounds "9"]
[EventCountry "GER"]
[SourceTitle "playchess.com"]
[Source "ChessBase"]
[SourceQuality "1"]
[TimeControl "40/4500+30:900+30"]

{[%evp 14,128,0,8,21,20,24,52,20,-24,-15,-31,41,33,33,24,62,58,54,47,63,68,93,89,77,47,60,68,76,73,116,94,165,123,150,142,166,141,123,-33,43,48,48,33,41,-43,106,-134,-126,-137,-118,-133,-90,-121,-119,-127,-89,-179,-172,-156,-88,-81,-94,-119,-114,-154,-149,-139,-7,-24,-36,-29,-30,-189,-187,-229,-224,-302,-300,-302,-241,-203,-125,-261,-242,-261,-202,-281,-276,-252,-253,-511,-429,-566,-563,-552,-527,-871,-476,-491,-481,-1024,-994,-1445,-1488,-1391,-1371,-1368,-1270,-6613,-2845,-1594,-1391,-29986,-29985,-29980,-4706]} 1. e4 {[%emt 0:00:00]} c5 {[%emt 0:00:00]} 2. Nf3 {[%emt 0:00:00]} Nc6 {[%emt 0:00:00]} 3. d4 {[%emt 0:00:00]} cxd4 {[%emt 0:00:00]} 4. Nxd4 {[%emt 0:00:00]} g6 {[%emt 0:00:00]} 5. Nc3 {[%emt 0:00:00]} Bg7 {[%emt 0:00:00]} 6. Be3 {[%emt 0:00:00]} Nf6 {[%emt 0:00:00]} 7. Bc4 {[%emt 0:00:00]} O-O {[%emt 0:00:00]} 8. Bb3 {[%emt 0:00:00]} Re8 {[%emt 0:00:00] B35: Sicilian: Accelerated Dragon with 5 Nc3: main line.} 9. f3 {[%emt 0:00:00]} e6 {[%emt 0:00:00]} 10. Qd2 {[%emt 0:00:00]} (10. f4 {seems wilder.} Ng4 11. Bg1 h5 12. Qd2) 10... d5 {[%emt 0:00:00] White is slightly better.} 11. exd5 {[%emt 0:00:00]} Nxd5 {[%emt 0:00:00]} 12. Nxd5 {[%emt 0:00:00]} exd5 {[%emt 0:14:06]} (12... Nxd4 $15 13. Nc3 b6) 13. O-O-O $14 {[%emt 0:00:10]} Na5 {[%emt 0:16:51]} 14. Rhe1 {[%emt 0:10:26] [#]} Nxb3+ $146 {[%emt 0:01:21]} ({Predecessor:} 14... Be6 15. Kb1 Nxb3 16. Nxb3 b6 17. Bd4 f6 18. Bc3 a5 19. Nd4 Bd7 20. Ne2 Be6 {½-½ (58) Meister,J (2416)-Malmdin,N (2150) Prague 2021}) 15. Nxb3 {[%emt 0:00:06]} (15. axb3 Bd7 $11) 15... Bf5 {[%emt 0:00:59]} (15... Qf6 16. Bd4 Qd8 17. Rxe8+ Qxe8 18. Bxg7 Kxg7 19. Qd4+ (19. Qxd5 Qe3+ 20. Kb1 Be6 $16) 19... Kg8 20. Qxd5 $16) 16. g4 {[%emt 0:01:51]} Be6 {[%emt 0:01:32]} (16... Qf6 $2 17. Bd4 Qh4 18. gxf5 $18) 17. Bd4 {[%emt 0:01:24]} Rc8 {[%emt 0:00:42]} 18. Bxg7 {[%emt 0:04:02]} Kxg7 {[%emt 0:00:07]} 19. Qd4+ {[%emt 0:00:09]} Kg8 {[%emt 0:01:03]} 20. Qf4 {[%emt 0:03:45]} Qh4 {[%emt 0:09:14]} 21. Nd4 {[%emt 0:16:00]} Rc4 {[%emt 0:00:34]} 22. Kb1 {[%emt 0:03:27]} h5 {[%emt 0:02:48]} (22... Rcc8 $16) 23. Re2 {[%emt 0:09:15]} hxg4 {[%emt 0:02:07]} 24. fxg4 {[%emt 0:00:11]} Rec8 {[%emt 0:02:34]} 25. Rg2 {[%emt 0:06:51]} Re8 {[%emt 0:08:06]} 26. Qe5 $2 {[%emt 0:05:50]} (26. b3 $16 Rcc8 27. Rf1) 26... Qh8 {[%emt 0:01:09]} ({Better is} 26... Bd7 $1 $15 27. Qxd5 Re1) 27. Qxh8+ {[%emt 0:04:49]} Kxh8 {[%emt 0:00:09]} 28. Re2 {[%emt 0:00:27]} Kg7 {[%emt 0:00:50]} 29. h3 {[%emt 0:02:39] [#]} (29. g5 $14) 29... Rh8 {[%emt 0:01:43]} (29... Bxg4 $1 $15 30. Rxe8 (30. hxg4 Rxd4 31. Rxd4 Rxe2 $17) 30... Bxd1) 30. Rd3 $2 {[%emt 0:03:45] [#]} (30. b3 $16 {stays on course.} Rxd4 31. Rxd4) 30... Bxg4 $1 $17 {[%emt 0:00:54][%mdl 512]} 31. Ree3 {[%emt 0:06:50]} Bd7 {[%emt 0:00:46]} 32. b3 {[%emt 0:00:15]} Rb4 {[%emt 0:01:57]} 33. a3 {[%emt 0:02:09]} Rb6 {[%emt 0:00:09]} 34. Kb2 {[%emt 0:00:19]} Rf6 {[%emt 0:00:32]} 35. Rg3 {[%emt 0:04:49]} (35. Rc3 $17 {was necessary.}) 35... Rf2 {[%emt 0:00:51]} 36. Rc3 {[%emt 0:01:53]} Rf4 {[%emt 0:02:55]} (36... Rc8 $142 37. Rxc8 Bxc8) 37. Rc7 {[%emt 0:00:48][%csl LRb7,LRd7]} Bc8 {[%emt 0:02:50]} ({Much less strong is} 37... Rxd4 38. Rxd7 Rf4 39. Rxb7 $14) ({Don't play} 37... Bxh3 $6 38. Rxh3 $1 Rxd4 39. Rxh8 Kxh8 40. Kc3 $11 (40. Rxb7 Kg7 $11) (40. Rxf7 g5 $11)) 38. Nb5 {[%emt 0:01:15]} Rxh3 {[%emt 0:01:13]} ({Inferior is} 38... Bxh3 39. Rxb7 a6 40. Nc7 $11) 39. Rg5 {[%emt 0:00:04]} Be6 {[%emt 0:01:08]} 40. Rxb7 {[%emt 0:00:50] [#]} Kh6 {[%emt 0:01:08]} (40... d4 $1 $17 {[%cal Rd4d3] Strongly threatening ...d3.} 41. Nc7 Bf5) 41. Rg2 {[%emt 0:16:05]} d4 {[%emt 0:27:02] White must now prevent ...Bd5.} 42. Rxa7 {[%emt 0:00:00]} d3 {[%emt 0:00:00] Threatens to win with ...dxc2.} 43. cxd3 {[%emt 0:00:00]} (43. Ra8 $11 {and White is okay.}) 43... Rxd3 $19 {[%emt 0:00:00]} 44. Nc3 {[%emt 0:00:00]} g5 {[%emt 0:00:00][%cal Bg6g5,Bg5g4][%mdl 32]} 45. Ra8 {[%emt 0:00:00]} g4 {[%emt 0:00:00]} 46. Rg8 {[%emt 0:00:00]} f6 {[%emt 0:00:00][%cal Bf7f6,Bf6f5,Bf5f4][%mdl 32]} 47. Re8 {[%emt 0:00:00]} Bd7 {[%emt 0:00:00]} 48. Rh8+ {[%emt 0:00:00]} (48. Re1 $17 {is a better defense.}) 48... Kg7 {[%emt 0:00:00]} 49. Rd8 {[%emt 0:00:00][%cal Oc3a4]} f5 {[%emt 0:00:00]} 50. Ne2 {[%emt 0:00:00]} Rff3 {[%emt 0:00:00]} 51. Nc1 {[%emt 0:00:00]} Rd5 {[%emt 0:00:00]} 52. Re2 $2 {[%emt 0:00:34]} (52. a4) 52... Kf7 {[%emt 0:00:00]} 53. Rh2 {[%emt 0:00:42]} Rh3 {[%emt 0:00:00] Against Rh7+} 54. Rc2 {[%emt 0:01:46]} f4 {[%emt 0:00:00]} 55. Ne2 {[%emt 0:00:27]} Rf3 {[%emt 0:00:00] ...Rf2 is the strong threat.} 56. Nc3 {[%emt 0:00:50]} Rdd3 {[%emt 0:00:00] aiming for ...Bf5.} 57. Rh2 {[%emt 0:00:59]} (57. Ne4 $142 Rxb3+ 58. Kc1) 57... Ke7 {[%emt 0:00:00]} 58. Rdh8 {[%emt 0:02:55]} Rxc3 {[%emt 0:00:00]} 59. R2h7+ {[%emt 0:00:06]} Ke6 {[%emt 0:00:00]} 60. Rh6+ {[%emt 0:00:21]} Ke5 {[%emt 0:00:00]} 61. Rh5+ {[%emt 0:01:11]} Ke4 {[%emt 0:00:00]} 62. Rb8 {[%emt 0:00:27]} Rcd3 {[%emt 0:00:00]} 63. Ra8 {[%emt 0:00:42]} Rd2+ {[%emt 0:00:00]} 64. Kc1 {[%emt 0:00:32]} Rg2 {[%emt 0:00:00] Quite a comeback for Black.  Weighted Error Value: White=0.83/Black=0.43} (64... Re2 $142 65. Rh1 g3 66. Rah8 g2 67. Rd1 Rf1 68. Rg8 f3 69. Rg7 Be6 70. Rg3 Bxb3 71. Rg4+ Ke3 72. Rgd4 Bxd1 73. Rxd1 Rxd1+ 74. Kxd1 g1=Q#) 0-1